bitfinex/quotes_ETHUSD_20251028
["timestamp","ask_amount","ask_price","bid_price","bid_amount"]
[1761614294019,0.6921,4129.9,4129.8,2.42342476]
[1761614295720,0.6921,4129.9,4129.8,0.002]
[1761614296118,0.6921,4129.9,4129.8,0.1228]
[1761614296712,0.6921,4129.9,4129.8,2.54422476]
[1761614298716,0.2243,4129.9,4129.8,2.54422476]
[1761614298958,0.2243,4130.2,4130.1,2.42124888]
[1761614299465,0.6921,4130.2,4130.1,2.54204888]
[1761614299772,0.2243,4131.2,4130.1,0.02421248]
[1761614299918,0.6921,4131.2,4130.1,0.3716]
[1761614300123,0.46780001,4131.1,4131.0,2.42072137]
[1761614301534,0.46780001,4131.1,4129.9,0.405504]
[1761614301747,0.46780001,4131.1,4130.9,2.42076174]
[1761614302363,0.46780001,4131.1,4131.0,2.42072137]
[1761614304036,1e-08,4131.1,4131.0,2.42072137]
[1761614304244,1e-08,4131.1,4131.0,2.90487656]
[1761614305441,1e-08,4131.1,4131.0,3.31038056]
[1761614305646,1e-08,4131.1,4131.0,3.68198056]
[1761614306351,1e-08,4131.1,4131.0,5.23718056]
[1761614308843,1e-08,4131.1,4131.0,5.23918056]
[1761614309750,1e-08,4131.1,4131.0,5.35998056]
[1761614311372,1e-08,4131.1,4131.0,4.98838056]
[1761614314646,1e-08,4131.1,4131.0,3.02767656]
[1761614314854,0.43710001,4131.1,4131.0,3.02767656]
[1761614320293,0.43710001,4131.1,4131.0,2.54352137]
[1761614321864,0.43710001,4131.1,4131.0,0.1228]
[1761614323164,0.43710001,4131.1,4131.0,2.54352137]
[1761614323996,1e-08,4131.1,4131.0,2.54352137]
[1761614324700,0.43710001,4131.1,4131.0,2.54352137]
[1761614325679,1e-08,4131.1,4131.0,2.54352137]
[1761614328007,1e-08,4131.1,4131.0,3.81706107]
[1761614328589,1e-08,4131.1,4131.0,3.44546107]
[1761614334542,1e-08,4131.1,4131.0,3.81706107]
[1761614334916,1e-08,4131.1,4131.0,3.44546107]
[1761614340457,1e-08,4131.1,4131.0,5.37226107]
[1761614344049,1e-08,4131.1,4131.0,5.25146107]
[1761614344439,1e-08,4131.8,4131.7,4.49991525]
[1761614344628,1e-08,4131.8,4131.7,6.15994528]
[1761614344835,1e-08,4131.8,4131.7,6.53154528]
[1761614348057,1e-08,4131.8,4131.7,6.15994528]
[1761614348259,1e-08,4131.8,4131.7,6.53154528]
[1761614350079,1e-08,4131.8,4131.7,7.01580105]
[1761614351148,1e-08,4131.8,4131.7,6.64420105]
[1761614353279,1e-08,4131.8,4131.7,7.01580105]
[1761614354050,1e-08,4131.8,4131.7,7.13660105]
[1761614357591,1e-08,4131.8,4131.7,6.76500105]
[1761614357754,1e-08,4131.8,4131.7,6.64610105]
[1761614359974,1e-08,4131.8,4131.7,6.24059705]
[1761614360902,1e-08,4131.8,4131.7,6.64610105]
[1761614362976,1e-08,4131.8,4131.7,7.08020105]
[1761614363697,1e-08,4131.8,4131.7,6.16184528]
[1761614363898,0.00100001,4131.8,4131.7,6.16184528]
[1761614364264,0.00100001,4131.8,4131.7,2.42031125]
[1761614364265,0.43510001,4131.8,4131.7,2.42031125]
[1761614369319,0.43510001,4131.8,4131.6,2.42235233]
[1761614369519,0.43510001,4131.8,4131.6,2.4223499]
[1761614369981,0.43510001,4131.8,4131.7,2.42031125]
[1761614372199,0.43510001,4131.8,4131.6,0.002]
[1761614372582,0.43510001,4131.8,4131.7,2.42031125]
[1761614374007,0.43510001,4131.8,4131.6,0.002]
[1761614374191,2.42031125,4131.7,4131.6,0.002]
[1761614374396,3.50811125,4131.7,4131.6,0.002]
[1761614374594,3.98041125,4131.7,4131.6,0.002]
[1761614375120,0.5931,4131.7,4131.6,0.002]
[1761614376986,3.01341125,4131.7,4131.6,0.002]
[1761614381406,2.89261125,4131.7,4131.6,0.002]
[1761614381600,3.01341125,4131.7,4131.6,0.002]
[1761614382108,0.5931,4131.7,4131.6,0.002]
[1761614382299,0.4723,4131.7,4131.6,0.002]
[1761614384613,2.89261125,4131.7,4131.6,0.002]
[1761614386003,4.44781125,4131.7,4131.6,0.002]
[1761614392021,4.5446965,4131.7,4131.6,0.002]
[1761614396051,4.9502005,4131.7,4131.6,0.002]
[1761614398559,8.9432005,4131.7,4131.6,0.002]
[1761614398759,9.0640005,4131.7,4131.6,0.002]
[1761614399252,5.0710005,4131.7,4131.6,0.002]
[1761614399422,9.0650005,4131.7,4131.6,0.002]
[1761614400155,5.0710005,4131.7,4131.6,0.002]
[1761614400363,4.6654965,4131.7,4131.6,0.002]
[1761614400558,5.6334965,4131.7,4131.6,0.002]
[1761614404437,5.49261125,4131.7,4131.6,0.002]
[1761614404642,3.93741125,4131.7,4131.6,0.002]
[1761614404825,2.96941125,4131.7,4131.6,0.002]
[1761614405027,5.49261125,4131.7,4131.6,0.002]
[1761614406033,4.52461125,4131.7,4131.6,0.002]
[1761614406237,5.49261125,4131.7,4131.6,0.002]
[1761614410592,4.52461125,4131.7,4131.6,0.002]
[1761614410754,5.49261125,4131.7,4131.6,0.002]
[1761614423098,4.52461125,4131.7,4131.6,0.002]
[1761614423306,5.49261125,4131.7,4131.6,0.002]
[1761614423598,4.52461125,4131.7,4131.6,0.002]
[1761614423805,5.49261125,4131.7,4131.6,0.002]
[1761614424166,6.42033304,4131.7,4131.6,0.002]
[1761614424582,7.17031088,4131.7,4131.6,0.002]
[1761614425398,6.51723073,4131.7,4131.6,0.002]
[1761614429716,7.17031088,4131.7,4131.6,0.002]
[1761614429919,6.51723073,4131.7,4131.6,0.002]
[1761614435220,9.06623073,4131.7,4131.6,0.002]
[1761614438909,2.82610818,4131.2,4131.1,1e-08]
[1761614439172,4.90352597,4131.2,4131.1,1e-08]
[1761614439347,5.37022597,4131.2,4131.1,1e-08]
[1761614439514,5.46713282,4131.2,4131.1,1e-08]
[1761614440924,8.49313282,4131.2,4131.1,1e-08]
[1761614448067,11.04213282,4131.2,4131.1,1e-08]
[1761614448277,8.49313282,4131.2,4131.1,1e-08]
[1761614448641,11.04213282,4131.2,4131.1,1e-08]
[1761614448838,11.16293282,4131.2,4131.1,1e-08]
[1761614449465,2.42095579,4130.6,4130.1,0.002]
[1761614449629,4.94415579,4130.6,4130.1,0.002]
[1761614449833,6.05387358,4130.6,4130.1,0.002]
[1761614450269,6.15079663,4130.6,4130.1,0.002]
[1761614451307,7.20850198,4130.6,4130.1,0.002]
[1761614455204,4.38189425,4130.2,4130.1,1e-08]
[1761614455517,8.10514219,4130.2,4130.1,1e-08]
[1761614455693,7.91981204,4130.2,4130.1,1e-08]
[1761614455871,8.01675294,4130.2,4130.1,1e-08]
[1761614456203,8.66858162,4130.2,4130.1,1e-08]
[1761614456374,8.01675294,4130.2,4130.1,1e-08]
[1761614457003,2.64056613,4129.9,4129.8,1e-08]
[1761614457170,4.71798392,4129.9,4129.8,1e-08]
[1761614457373,5.18468392,4129.9,4129.8,1e-08]
[1761614457767,5.28162482,4129.9,4129.8,1e-08]
[1761614458213,7.83062482,4129.9,4129.8,1e-08]
[1761614458411,5.28162482,4129.9,4129.8,1e-08]
[1761614459277,8.59072482,4129.9,4129.8,1e-08]
[1761614459477,9.05742482,4129.9,4129.8,1e-08]
[1761614459690,9.27662482,4129.9,4129.8,1e-08]
[1761614460408,5.00122882,4129.9,4129.8,1e-08]
[1761614460712,8.99622882,4129.9,4129.8,1e-08]
[1761614464399,5.68512882,4129.9,4129.8,1e-08]
[1761614464603,6.65312882,4129.9,4129.8,1e-08]
[1761614465001,6.77392882,4129.9,4129.8,1e-08]
[1761614468447,9.32292882,4129.9,4129.8,1e-08]
[1761614470438,5.12202882,4129.9,4129.8,1e-08]
[1761614470817,6.09002882,4129.9,4129.8,1e-08]
[1761614471218,6.56242882,4129.9,4129.8,1e-08]
[1761614471413,6.77942882,4129.9,4129.8,1e-08]
[1761614473369,6.78042882,4129.9,4129.8,1e-08]
[1761614476067,7.43226787,4129.9,4129.8,1e-08]
[1761614478449,7.43226787,4129.9,4129.3,0.002]
[1761614478450,2.82716332,4129.4,4129.3,0.002]
[1761614478653,4.50316332,4129.4,4129.3,0.002]
[1761614478880,0.405504,4128.8,4127.6,0.002]
[1761614479041,1.960704,4128.4,4127.6,0.002]
[1761614479372,4.3829499,4128.4,4128.0,0.39389459]
[1761614479676,4.3829499,4128.4,4128.0,0.02229459]
[1761614479877,4.3829499,4128.4,4128.0,0.39389459]
[1761614481085,4.90496695,4128.4,4128.0,0.39389459]
[1761614481250,4.90485449,4128.4,4128.0,0.39389459]
[1761614482262,4.3829499,4128.4,4128.0,0.39389459]
[1761614482661,5.37716138,4128.4,4128.0,0.02229459]
[1761614482853,6.02991314,4128.4,4128.0,0.02229459]
[1761614483053,6.02991314,4128.4,4127.6,0.002]
[1761614483054,2.82816068,4127.7,4127.6,0.002]
[1761614483406,5.8730116,4127.7,4127.6,0.002]
[1761614483556,6.3454116,4127.7,4127.6,0.002]
[1761614484326,4.38359547,4127.3,4127.2,1e-08]
[1761614484583,4.90524639,4127.3,4127.2,1e-08]
[1761614484886,5.37764639,4127.3,4127.2,1e-08]
[1761614485573,4.90524639,4127.3,4127.2,1e-08]
[1761614486152,4.38359547,4127.3,4127.2,1e-08]
[1761614487762,4.48059538,4127.3,4127.2,1e-08]
[1761614488869,4.60139538,4127.3,4127.2,1e-08]
[1761614489778,4.60139538,4127.3,4127.2,0.11890001]
[1761614490170,4.60139538,4127.3,4127.2,0.49050001]
[1761614492901,4.09889147,4127.3,4127.2,0.49050001]
[1761614493102,2.54369147,4127.3,4127.2,0.49050001]
[1761614497202,0.1208,4127.3,4127.2,0.49050001]
[1761614497995,0.1208,4127.3,4127.2,0.7830619]
[1761614499604,2.42254278,4127.9,4127.2,3.20601208]
[1761614499791,2.42254278,4127.9,4127.3,0.3716]
[1761614499792,0.1208,4127.6,4127.3,0.3716]
[1761614501060,0.1208,4127.6,4127.4,2.42283267]
[1761614501494,2.42243936,4128.1,4127.5,0.3716]
[1761614501673,0.1208,4127.8,4127.6,0.27943924]
[1761614502069,0.1208,4127.8,4127.7,0.3716]
[1761614502268,0.1208,4128.1,4127.7,2.79421411]
[1761614502469,0.1208,4128.1,4127.9,2.4225181]
[1761614502674,0.1208,4128.1,4127.8,0.3716]
[1761614502675,0.001,4128.4,4128.0,2.42248062]
[1761614502992,0.001,4128.4,4128.3,0.1189]
[1761614503397,0.1218,4128.4,4128.3,0.4905]
[1761614506514,0.001,4128.4,4128.3,0.4905]
[1761614506818,0.001,4128.4,4128.3,3.63980677]
[1761614507010,0.001,4128.4,4128.3,4.25810934]
[1761614507710,0.001,4128.4,4128.3,1.83580476]
[1761614509591,0.001,4128.4,4128.3,0.1189]
[1761614509789,2.4232459,4128.4,4128.3,0.1189]
[1761614509988,0.1218,4128.4,4128.3,0.4905]
[1761614510401,0.001,4128.4,4128.3,0.4905]
[1761614516421,0.001,4128.4,4128.3,2.91280458]
[1761614516822,0.001,4128.4,4128.3,3.03360458]
[1761614517121,0.001,4128.4,4128.3,0.6113]
[1761614518731,0.001,4128.4,4128.3,3.03360458]
[1761614519045,0.001,4128.4,4128.3,3.71209169]
[1761614522144,0.001,4128.4,4128.3,3.15440458]
[1761614523631,0.001,4128.4,4128.3,3.03360458]
[1761614524610,0.001,4128.4,4128.3,4.00160458]
[1761614527164,0.001,4128.4,4128.3,4.02582762]
[1761614527339,0.001,4128.4,4128.3,4.43133162]
[1761614527527,0.001,4128.4,4128.3,9.35937965]
[1761614527947,0.001,4128.4,4128.3,9.94657965]
[1761614528167,0.001,4128.4,4128.3,10.91457965]
[1761614528362,0.001,4128.4,4128.3,9.94657965]
[1761614528567,0.001,4128.4,4128.3,10.91457965]
[1761614531937,0.001,4128.4,4128.3,11.39705482]
[1761614533684,0.001,4128.4,4128.3,11.51785482]
[1761614535707,0.001,4128.4,4128.3,9.66187565]
[1761614536010,0.001,4128.4,4128.3,11.03537965]
[1761614537407,0.001,4128.4,4128.3,5.41127566]
[1761614537710,0.001,4128.4,4128.3,7.15637966]
[1761614538665,0.001,4128.4,4128.3,7.03557966]
[1761614538909,0.001,4128.4,4128.3,7.15637966]
[1761614540986,0.001,4128.4,4128.3,6.18837966]
[1761614541187,0.001,4128.4,4128.3,7.15637966]
[1761614542128,0.001,4128.4,4128.3,6.18837966]
[1761614542320,0.001,4128.4,4128.3,5.78287566]
[1761614542491,0.001,4128.4,4128.3,10.25827565]
[1761614542689,0.001,4128.4,4128.3,10.62987565]
[1761614542888,0.001,4128.4,4128.3,11.03537965]
[1761614545021,0.001,4128.4,4128.3,3.85607566]
[1761614545219,0.4462,4128.4,4128.3,2.42230458]
[1761614545392,0.001,4128.4,4128.3,2.42230458]
[1761614545788,0.4462,4128.4,4128.3,2.42230458]
[1761614546416,0.4462,4128.4,4127.9,0.968]
[1761614546617,0.4462,4128.4,4127.1,0.012]
[1761614546618,0.4462,4128.4,4128.3,2.42230458]
[1761614550212,0.4462,4128.4,4128.1,2.42239781]
[1761614550419,0.4462,4128.4,4128.3,2.42230458]
[1761614553851,0.001,4128.4,4128.3,2.42230458]
[1761614555260,0.001,4128.4,4128.3,2.54310458]
[1761614557060,0.4603,4128.4,4128.3,2.54310458]
[1761614557839,0.001,4128.4,4128.3,2.54310458]
[1761614561891,0.4603,4128.4,4128.3,2.54310458]
[1761614562265,0.4603,4128.4,4128.3,0.1208]
[1761614562472,0.4603,4128.4,4128.3,2.54310458]
[1761614564581,0.4603,4128.4,4128.3,0.1208]
[1761614565201,0.4603,4128.4,4128.2,2.42235358]
[1761614565202,0.4603,4128.4,4128.0,0.02229459]
[1761614565366,0.4603,4128.4,4128.1,0.1208]
[1761614565899,0.4603,4128.4,4128.1,2.54321815]
[1761614566100,0.4603,4128.4,4128.0,0.02229459]
[1761614569076,0.4603,4128.4,4128.0,2.44477118]
[1761614569893,0.4603,4128.4,4128.0,0.02229459]
[1761614570374,2.42234627,4128.3,4128.0,0.02229459]
[1761614570793,0.4593,4128.2,4128.0,0.02229459]
[1761614573980,2.88170131,4128.2,4128.0,0.02229459]
[1761614574184,0.4593,4128.2,4128.0,0.02229459]
[1761614574508,0.4593,4128.1,4128.0,0.02229459]
[1761614576124,0.5801,4128.1,4128.0,0.02229459]
[1761614578326,3.00252193,4128.1,4128.0,0.02229459]
[1761614578816,4.55772193,4128.1,4128.0,0.02229459]
[1761614580731,0.1208,4128.1,4128.0,0.02229459]
[1761614580900,0.001,4128.2,4128.0,0.02229459]
[1761614581619,0.4603,4128.2,4128.0,0.02229459]
[1761614584856,0.001,4128.2,4128.0,0.02229459]
[1761614585440,0.001,4128.2,4128.0,2.44475589]
[1761614586238,0.001,4128.2,4128.0,0.02229459]
[1761614586643,0.001,4128.2,4128.1,2.42242193]
[1761614586939,0.001,4128.2,4128.0,2.4447593]
[1761614587140,0.001,4128.2,4128.1,2.42242193]
[1761614588936,0.001,4128.2,4128.1,3.04012612]
[1761614590943,0.001,4128.2,4128.1,3.41172612]
[1761614592018,0.001,4128.2,4128.1,3.04012612]
[1761614592351,0.001,4128.2,4128.1,3.55675033]
[1761614592526,0.001,4128.2,4128.1,3.67855033]
[1761614595734,0.001,4128.2,4128.1,3.65432612]
[1761614598143,0.001,4128.2,4128.1,4.01002612]
[1761614599761,0.001,4128.2,4128.1,3.04202612]
[1761614600133,0.001,4128.2,4128.1,3.16092612]
[1761614600335,0.001,4128.2,4128.1,8.54641375]
[1761614600539,0.001,4128.2,4128.1,8.91801375]
[1761614600769,0.001,4128.2,4128.1,9.01493257]
[1761614605762,0.001,4128.2,4128.1,12.89393256]
[1761614607349,0.001,4128.2,4128.1,12.52233256]
[1761614607756,0.001,4128.2,4128.1,13.49033256]
[1761614609967,0.001,4128.2,4128.1,13.37143256]
[1761614610142,0.001,4128.2,4128.1,3.13894494]
[1761614611157,0.001,4128.2,4128.1,8.52443257]
[1761614612138,0.475,4128.2,4128.1,2.54322193]
[1761614615740,0.475,4128.2,4128.1,0.1208]
[1761614616073,0.475,4128.2,4128.0,0.02229459]
[1761614616276,0.5958,4128.2,4128.0,0.02229459]
[1761614616774,0.4498,4128.1,4128.0,2.44476745]
[1761614616963,0.4498,4128.1,4128.0,0.02229459]
[1761614617365,0.4498,4128.1,4128.0,2.44477521]
[1761614618173,0.4498,4128.1,4128.0,0.02229459]
[1761614619270,0.4498,4128.1,4128.0,2.44477521]
[1761614621178,0.4498,4128.1,4128.0,0.02229459]
[1761614621887,0.4498,4128.1,4128.0,2.44477521]
[1761614622777,0.1218,4128.2,4128.0,2.44477521]
[1761614622953,0.5716,4128.2,4128.1,2.42242193]
[1761614623964,0.5716,4128.2,4128.0,0.02229459]
[1761614623965,0.5716,4128.2,4128.0,2.4447591]
[1761614624157,0.4498,4128.1,4128.0,2.4447591]
[1761614624684,0.1218,4128.2,4128.0,2.4447591]
[1761614624862,0.4498,4128.1,4128.0,2.4447591]
[1761614625064,0.1218,4128.2,4128.0,2.4447591]
[1761614625593,0.5716,4128.2,4128.0,0.02229459]
[1761614625974,0.4498,4128.1,4128.0,0.02229459]
[1761614626686,0.4498,4128.1,4128.0,2.44477521]
[1761614628053,0.4498,4128.1,4128.0,0.02229459]
[1761614630186,0.4498,4128.1,4128.0,2.44477521]
[1761614630661,0.1218,4128.2,4128.1,2.42242193]
[1761614630662,0.001,4128.2,4128.1,2.42242193]
[1761614637313,0.4508,4128.2,4128.1,2.42242193]
[1761614641005,0.4508,4128.2,4128.0,0.14309459]
[1761614641202,0.4508,4128.2,4128.0,0.02229459]
[1761614641407,4.09842193,4128.1,4128.0,0.02229459]
[1761614641808,4.54822193,4128.1,4128.0,0.02229459]
[1761614642380,2.1258,4128.1,4128.0,0.02229459]
[1761614642694,4.54822193,4128.1,4128.0,0.02229459]
[1761614644377,4.52652193,4128.1,4128.0,0.02229459]
[1761614646713,2.1041,4128.1,4128.0,0.02229459]
[1761614646890,1.676,4128.1,4128.0,0.02229459]
[1761614657232,0.001,4128.2,4128.1,2.42242193]
[1761614657441,0.001,4128.2,4128.1,2.56554614]
[1761614657639,0.001,4128.2,4128.1,2.91292193]
[1761614660546,0.001,4128.2,4128.1,2.54132193]
[1761614661701,0.001,4128.2,4128.1,2.91292193]
[1761614661902,0.001,4128.2,4128.1,3.9076326]
[1761614662330,0.001,4128.2,4128.1,3.93185681]
[1761614662756,0.001,4128.2,4128.1,3.9076326]
[1761614663050,0.001,4128.2,4128.1,4.05265681]
[1761614663919,0.001,4128.2,4128.1,4.12535119]
[1761614664123,0.001,4128.2,4128.1,4.72175119]
[1761614664513,0.001,4128.2,4128.1,5.09335119]
[1761614665564,0.001,4128.2,4128.1,3.75375119]
[1761614665768,0.001,4128.2,4128.1,4.12535119]
[1761614669887,0.001,4128.2,4128.1,4.1495754]
[1761614670086,0.001,4128.2,4128.1,5.1175754]
[1761614670285,0.001,4128.2,4128.1,5.09335119]
[1761614671788,0.001,4128.2,4128.1,8.97235118]
[1761614672123,0.001,4128.2,4128.1,10.81225518]
[1761614672290,0.001,4128.2,4128.1,10.93305518]
[1761614672486,0.001,4128.4,4128.3,8.60706579]
[1761614672688,0.001,4128.4,4128.3,14.45516306]
[1761614672984,0.001,4128.4,4128.3,14.82676306]
[1761614673188,0.001,4128.4,4128.3,14.923657]
[1761614674581,0.001,4128.4,4128.3,15.891657]
[1761614679677,0.001,4128.4,4128.3,14.923657]
[1761614679883,0.001,4128.4,4128.3,15.891657]
[1761614684024,0.001,4128.4,4128.3,12.591353]
[1761614684224,0.001,4128.4,4128.3,13.46245906]
[1761614686201,0.001,4128.4,4128.3,6.64636179]
[1761614686401,0.4605,4128.4,4128.3,7.61436179]
[1761614687327,0.001,4128.4,4128.3,7.61436179]
[1761614692738,0.001,4128.4,4128.3,8.10676179]
[1761614693323,0.001,4128.4,4128.3,7.73516179]
[1761614693572,0.001,4128.4,4128.3,9.23429054]
[1761614693929,0.001,4128.4,4128.3,10.01139454]
[1761614694343,0.001,4128.4,4128.3,9.63979454]
[1761614694562,0.001,4128.4,4128.3,10.10830162]
[1761614697275,0.001,4128.4,4128.3,9.73670162]
[1761614697437,0.001,4128.4,4128.3,10.10830162]
[1761614700168,0.001,4128.4,4128.3,11.66350162]
[1761614701359,0.001,4128.4,4128.3,11.29190162]
[1761614702236,0.001,4128.4,4128.3,11.66350162]
[1761614702935,1e-08,4128.9,4128.5,0.405504]
[1761614703177,1e-08,4128.9,4128.8,11.27562965]
[1761614703551,1e-08,4128.9,4128.8,11.74411843]
[1761614704383,1e-08,4128.9,4128.8,7.52006122]
[1761614704677,1e-08,4128.9,4128.8,11.74411843]
[1761614705267,0.2166,4129.9,4129.7,2.4214834]
[1761614705456,0.6729,4129.9,4129.7,7.61354061]
[1761614705659,0.4663,4129.8,4129.7,7.61354061]
[1761614706792,0.4663,4129.8,4129.7,2.4214834]
[1761614707286,0.01,4129.8,4129.7,6.64554061]
[1761614707597,0.01,4129.8,4129.7,8.61705046]
[1761614707960,0.01,4129.8,4129.7,10.94935446]
[1761614708192,0.001,4129.9,4129.8,4.38212876]
[1761614708402,0.001,4129.9,4129.8,4.75372876]
[1761614709894,0.001,4129.9,4129.8,4.38212876]
[1761614710098,0.001,4129.9,4129.8,6.79540247]
[1761614711260,0.001,4129.9,4129.8,7.25560247]
[1761614712973,0.001,4129.9,4129.8,7.37640247]
[1761614716115,0.4612,4129.9,4129.8,7.37640247]
[1761614716416,0.001,4129.9,4129.8,7.37640247]
[1761614717985,0.001,4129.9,4129.8,6.40840247]
[1761614718186,0.001,4129.9,4129.8,7.37640247]
[1761614721112,0.6957,4129.9,4129.8,7.37640247]
[1761614722287,0.001,4129.9,4129.8,7.37640247]
[1761614723821,0.001,4129.9,4129.8,12.29540922]
[1761614724618,0.001,4129.9,4129.8,5.94820247]
[1761614724819,0.6957,4129.9,4129.8,5.94820247]
[1761614725008,0.6957,4129.9,4129.8,2.54222476]
[1761614727730,0.6957,4129.9,4129.8,2.54222476]
[1761614728924,0.6957,4129.9,4129.8,0.1208]
[1761614729497,0.6957,4129.9,4129.8,2.54422476]
[1761614730105,0.6957,4129.9,4129.8,0.1228]
[1761614730624,3.11706613,4129.9,4129.8,0.002]
[1761614731323,4.67226613,4129.9,4129.8,0.002]
[1761614740743,4.79306613,4129.9,4129.8,0.002]
[1761614745648,10.17227288,4129.9,4129.8,0.002]
[1761614746338,10.26919758,4129.9,4129.8,0.002]
[1761614756124,10.26919758,4129.9,4128.6,2.42210677]
[1761614756125,2.42218723,4128.5,4128.1,0.012]
[1761614756361,2.63917478,4128.9,4127.2,1e-08]
[1761614756362,2.63980726,4127.8,4127.2,1e-08]
[1761614756563,2.42282598,4127.5,4127.2,1e-08]
[1761614756763,2.42283277,4127.4,4127.2,1e-08]
[1761614756966,0.405504,4127.2,4126.8,0.002]
[1761614757168,3.97809147,4127.3,4126.3,0.002]
[1761614757169,0.405504,4126.6,4126.3,0.002]
[1761614757463,9.35782668,4126.4,4126.3,0.002]
[1761614757646,10.28509903,4126.4,4126.3,0.002]
[1761614757856,10.73559903,4126.4,4126.3,0.002]
[1761614758153,10.84559903,4126.4,4126.3,0.002]
[1761614761188,10.32383068,4126.4,4126.3,0.002]
[1761614762485,4.94462393,4126.4,4126.3,0.002]
[1761614763264,1.6652,4126.4,4126.3,0.002]
[1761614763476,0.969,4126.4,4126.3,0.002]
[1761614763674,3.39241993,4126.4,4126.3,0.002]
[1761614763860,2.5242,4126.4,4126.3,0.002]
[1761614764382,3.39241993,4126.4,4126.3,0.002]
[1761614764582,5.39051993,4126.4,4126.3,0.002]
[1761614766093,5.51131993,4126.4,4126.3,0.002]
[1761614771985,5.91682393,4126.4,4126.3,0.002]
[1761614773021,5.91682393,4126.4,4126.1,0.01]
[1761614773022,4.38418266,4126.3,4126.1,0.01]
[1761614773204,1.37228875,4126.2,4126.1,0.01]
[1761614773409,5.7767934,4126.2,4126.1,1e-08]
[1761614773625,6.17379903,4126.2,4126.1,1e-08]
[1761614773831,2.42412489,4125.2,4125.1,0.09762861]
[1761614774028,10.56213164,4125.2,4125.1,0.09762861]
[1761614774214,11.01223164,4125.2,4125.1,0.09762861]
[1761614775541,11.41773564,4125.2,4125.1,0.09762861]
[1761614775843,6.03852889,4125.2,4125.1,0.09762861]
[1761614778624,6.03852889,4125.2,4124.1,0.2309]
[1761614778625,2.42469913,4124.3,4124.1,0.11]
[1761614778813,4.94891267,4124.2,4124.1,0.11]
[1761614783111,0.969,4125.1,4124.1,0.6608]
[1761614783621,0.969,4125.1,4124.5,2.42450653]
[1761614783940,0.1216,4124.9,4124.5,2.4245215]
[1761614784144,0.1216,4124.9,4124.6,0.4299]
[1761614785234,0.969,4125.1,4124.6,0.4299]
[1761614785433,0.969,4125.1,4124.6,0.83694335]
[1761614785633,0.969,4125.8,4124.6,0.4299]
[1761614785845,0.1208,4125.5,4124.9,0.1216]
[1761614786032,0.1208,4125.5,4125.2,2.42410828]
[1761614786231,0.969,4125.8,4125.4,0.1369]
[1761614786447,1.0898,4125.8,4125.4,0.1369]
[1761614786651,1.0898,4125.8,4125.5,0.4299]
[1761614787214,0.1208,4125.8,4125.5,0.4299]
[1761614787534,0.1208,4126.2,4125.6,0.1208]
[1761614787741,0.1208,4126.2,4125.7,2.42382489]
[1761614787946,0.1208,4126.2,4125.7,2.85372489]
[1761614788248,0.51953784,4126.4,4126.1,0.1721]
[1761614788424,0.1208,4126.4,4126.2,0.4299]
[1761614788617,0.969,4126.5,4126.2,0.4299]
[1761614789427,0.1218,4126.7,4126.2,2.8534316]
[1761614789826,0.1218,4126.7,4126.3,0.4299]
[1761614789827,0.001,4126.7,4126.3,0.4299]
[1761614790230,0.001,4126.7,4126.4,2.42339902]
[1761614790428,0.001,4126.7,4126.4,2.54419902]
[1761614790654,0.001,4126.7,4126.5,0.4299]
[1761614793267,0.001,4126.7,4126.6,2.56833549]
[1761614793447,0.001,4126.7,4126.6,2.54410247]
[1761614793758,0.001,4126.7,4126.6,2.99823549]
[1761614794662,0.001,4126.7,4126.6,2.97400247]
[1761614795030,0.001,4126.7,4126.2,2.85343513]
[1761614795229,0.001,4126.7,4126.2,0.4299]
[1761614795430,0.001,4126.7,4126.3,0.4299]
[1761614796557,2.4242462,4126.7,4126.3,0.4299]
[1761614796836,2.4242462,4126.7,4126.1,0.1721]
[1761614798375,0.001,4126.7,4126.1,0.1721]
[1761614798577,0.001,4126.7,4126.2,2.85342549]
[1761614798935,0.001,4126.7,4126.3,0.4299]
[1761614800538,0.001,4126.7,4126.1,2.59568392]
[1761614801560,0.001,4126.7,4126.2,2.42353355]
[1761614801778,0.001,4126.7,4126.2,2.85342492]
[1761614801961,0.001,4126.7,4126.3,0.4299]
[1761614802634,0.001,4126.7,4126.3,2.85337027]
[1761614802838,0.001,4126.7,4126.4,0.4299]
[1761614804790,0.001,4126.7,4126.1,2.5956687]
[1761614805164,0.001,4126.7,4126.4,0.1208]
[1761614806419,0.001,4127.2,4126.4,1.35818064]
[1761614806575,0.01,4128.8,4128.5,6.65118388]
[1761614806792,0.01,4128.8,4128.7,2.4220699]
[1761614806977,0.01,4128.8,4128.7,5.97640574]
[1761614807173,0.01,4128.8,4128.7,6.35768905]
[1761614807573,1e-08,4128.8,4128.7,5.51986998]
[1761614810392,1e-08,4128.8,4128.7,6.48886998]
[1761614814511,1e-08,4128.8,4128.7,5.51986998]
[1761614814713,1e-08,4128.8,4128.7,6.48786998]
[1761614815987,0.00100001,4128.8,4128.7,6.48786998]
[1761614816619,0.00100001,4128.8,4128.7,6.60866998]
[1761614819200,0.00100001,4128.8,4128.7,5.64066998]
[1761614819533,0.00100001,4128.8,4128.7,6.20316598]
[1761614821091,0.00100001,4128.8,4128.7,3.67996598]
[1761614821285,0.00100001,4128.8,4128.7,2.5428699]
[1761614827028,0.44970001,4128.8,4128.7,0.1208]
[1761614827852,0.44970001,4128.8,4128.6,0.002]
[1761614828639,2.00490001,4128.8,4128.6,0.002]
[1761614829111,0.4487,4128.7,4128.6,0.002]
[1761614830133,4.4259699,4128.7,4128.6,0.002]
[1761614832610,2.0039,4128.7,4128.6,0.002]
[1761614833839,4.4259699,4128.7,4128.6,0.002]
[1761614835220,2.0039,4128.7,4128.6,0.002]
[1761614835419,4.4259699,4128.7,4128.6,0.002]
[1761614836524,2.0039,4128.7,4128.6,0.002]